[Event "Germany Countries-chT Youth 2022"]
[Site "Wiesbaden"]
[Date "2022.10.02"]
[Round "4"]
[White "Pflugradt, Natalie"]
[Black "Voigt, Anastasia"]
[Result "0-1"]
[ECO "C54"]
[WhiteElo "1518"]
[BlackElo "1772"]
[Annotator "NA RC COMBH"]
[PlyCount "158"]
[EventDate "2022.09.28"]
[EventType "team-tourn"]
[EventRounds "7"]
[EventCountry "GER"]
[SourceTitle "playchess.com"]
[Source "ChessBase"]
[SourceQuality "1"]
[TimeControl "40/5400+30:1800+30"]

1. e4 {[%emt 0:00:02]} e5 {[%emt 0:00:04]} 2. Nf3 {[%emt 0:00:06]} Nc6 {[%emt 0:00:04]} 3. Bc4 {[%emt 0:00:07]} Bc5 {[%emt 0:00:06]} 4. c3 {[%emt 0:00:10]} Nf6 {[%emt 0:00:04]} 5. d4 {[%emt 0:00:22]} exd4 {[%emt 0:00:07]} 6. cxd4 {[%emt 0:00:05]} Bb4+ {[%emt 0:00:05]} 7. Bd2 {[%emt 0:00:09]} Bxd2+ {[%emt 0:00:14]} 8. Nbxd2 {[%emt 0:00:07]} d5 {[%emt 0:00:05]} 9. exd5 {[%emt 0:00:13]} Nxd5 {[%emt 0:00:06]} 10. Qb3 {[%emt 0:00:39]} Nce7 {[%emt 0:00:48]} 11. O-O {[%emt 0:00:30]} O-O {[%emt 0:00:31]} 12. Rfe1 {[%emt 0:00:25]} c6 {[%emt 0:01:13]} 13. Ne4 {[%emt 0:01:23]} Qc7 {[%emt 0:04:11]} 14. Rac1 {[%emt 0:02:36]} Qb6 {[%emt 0:02:54]} 15. Qd3 {[%emt 0:11:08]} Bf5 {[%emt 0:09:54]} 16. Qd2 {[%emt 0:06:26]} Bxe4 {[%emt 0:05:25]} 17. Rxe4 {[%emt 0:00:14]} Rad8 {[%emt 0:01:09]} 18. Rce1 {[%emt 0:06:57]} Ng6 {[%emt 0:02:24]} 19. g3 {[%emt 0:11:12]} Rd6 {[%emt 0:04:40]} 20. R4e2 {[%emt 0:12:56]} Qd8 {[%emt 0:06:25]} 21. Ng5 {[%emt 0:05:28]} h6 {[%emt 0:02:58]} 22. Ne4 {[%emt 0:01:27]} Rd7 {[%emt 0:01:55]} 23. Nc5 {[%emt 0:02:27]} Rc7 {[%emt 0:00:47]} 24. Bd3 {[%emt 0:01:45]} Nge7 {[%emt 0:02:03]} 25. Be4 {[%emt 0:14:02]} Nf6 {[%emt 0:00:22]} 26. Qf4 {[%emt 0:06:51]} Nxe4 {[%emt 0:02:44]} 27. Qxe4 {[%emt 0:01:49]} Nd5 {[%emt 0:01:25]} 28. Qf3 {[%emt 0:03:18]} Nf6 {[%emt 0:05:05]} 29. Nb3 {[%emt 0:03:33]} Qd5 {[%emt 0:02:33]} 30. Qc3 {[%emt 0:02:25]} Rd8 {[%emt 0:02:24]} 31. Re5 {[%emt 0:00:37]} Qd7 {[%emt 0:00:50]} 32. Qc5 {[%emt 0:02:10]} b6 {[%emt 0:05:54]} 33. Qe7 {[%emt 0:00:44]} Qxe7 {[%emt 0:04:40]} 34. Rxe7 {[%emt 0:00:01]} Rxe7 {[%emt 0:00:11]} 35. Rxe7 {[%emt 0:00:02]} Rd7 {[%emt 0:00:06]} 36. Rxd7 {[%emt 0:01:19]} Nxd7 {[%emt 0:00:06]} 37. Kf1 {[%emt 0:00:16]} Kf8 {[%emt 0:00:06]} 38. Ke2 {[%emt 0:00:04]} Ke7 {[%emt 0:00:21]} 39. Ke3 {[%emt 0:01:16]} Ke6 {[%emt 0:00:30]} 40. Nd2 {[%emt 0:00:55]} Nf6 {[%emt 0:00:25]} 41. f3 {[%emt 0:30:42]} Nd5+ {[%emt 0:31:26]} 42. Ke2 {[%emt 0:01:49]} Ne7 {[%emt 0:02:18]} 43. Kd3 {[%emt 0:01:40]} Kd5 {[%emt 0:00:23]} 44. Nc4 {[%emt 0:00:00]} Nf5 {[%emt 0:00:00]} 45. g4 {[%emt 0:00:00]} Nd6 {[%emt 0:00:00]} 46. Ne3+ {[%emt 0:00:00]} Ke6 {[%emt 0:00:00]} 47. h4 {[%emt 0:00:00]} g6 {[%emt 0:00:00]} 48. Ng2 {[%emt 0:00:00]} g5 {[%emt 0:00:00]} 49. h5 {[%emt 0:00:00]} f5 {[%emt 0:00:00]} 50. Ne3 {[%emt 0:00:00]} f4 {[%emt 0:00:00]} 51. Nd1 {[%emt 0:00:00]} a6 {[%emt 0:00:00]} 52. Nc3 {[%emt 0:00:00]} b5 {[%emt 0:00:00]} 53. b4 {[%emt 0:00:00]} Nc4 {[%emt 0:00:00]} 54. Nd1 {[%emt 0:00:00]} a5 {[%emt 0:00:00]} 55. bxa5 {[%emt 0:00:00]} Nxa5 {[%emt 0:00:00]} 56. Nc3 {[%emt 0:00:00]} Nc4 {[%emt 0:01:54]} 57. Nd1 {[%emt 0:00:00]} Nb6 {[%emt 0:01:23]} 58. Ke4 {[%emt 0:00:25]} Nd5 {[%emt 0:02:26]} 59. a3 {[%emt 0:01:19]} Nb6 {[%emt 0:05:00]} 60. Nc3 {[%emt 0:01:28]} Nc4 {[%emt 0:01:50]} 61. Nb1 {[%emt 0:03:27]} Ne3 {[%emt 0:03:18]} 62. Nd2 {[%emt 0:00:47]} Nd1 {[%emt 0:00:58]} 63. Kd3 {[%emt 0:00:59]} Nb2+ {[%emt 0:05:12]} 64. Kc3 {[%emt 0:00:28]} Na4+ {[%emt 0:01:59]} 65. Kd3 {[%emt 0:00:08]} Nb6 {[%emt 0:04:21]} 66. Kc3 {[%emt 0:01:06]} Kd5 {[%emt 0:00:28]} 67. Ne4 {[%emt 0:00:25]} Nd7 {[%emt 0:00:43]} 68. Kd3 {[%emt 0:00:44]} c5 {[%emt 0:01:04]} 69. dxc5 {[%emt 0:00:22]} Ne5+ {[%emt 0:04:39]} 70. Ke2 {[%emt 0:00:50]} Kc4 {[%emt 0:00:47]} 71. Nd2+ {[%emt 0:00:37]} Kxc5 {[%emt 0:00:12]} 72. Nb3+ {[%emt 0:00:14]} Kc4 {[%emt 0:00:33]} 73. Nd2+ {[%emt 0:00:18]} Kc3 {[%emt 0:00:32]} 74. Ne4+ {[%emt 0:00:17]} Kb3 {[%emt 0:00:49]} 75. Nd6 {[%emt 0:00:08]} Ka4 {[%emt 0:02:21]} 76. Nf5 {[%emt 0:01:45]} Kxa3 {[%emt 0:00:48]} 77. Nxh6 {[%emt 0:00:24]} b4 {[%emt 0:00:12]} 78. Nf5 {[%emt 0:00:13]} Nf7 {[%emt 0:00:49]} 79. Kd2 {[%emt 0:00:38]} b3 {[%emt 0:00:42]} 0-1

[Event "Germany Countries-chT Youth 2022"]
[Site "Wiesbaden"]
[Date "2022.10.02"]
[Round "4"]
[White "Dohon, Maria-Johanna"]
[Black "Alhassan, Jodi"]
[Result "1-0"]
[ECO "E16"]
[WhiteElo "1430"]
[BlackElo "1227"]
[Annotator "NA RC COMBH"]
[PlyCount "73"]
[EventDate "2022.09.28"]
[EventType "team-tourn"]
[EventRounds "7"]
[EventCountry "GER"]
[SourceTitle "playchess.com"]
[Source "ChessBase"]
[SourceQuality "1"]
[TimeControl "40/5400+30:1800+30"]

1. d4 {[%emt 0:00:03]} Nf6 {[%emt 0:00:12]} 2. c4 {[%emt 0:00:08]} e6 {[%emt 0:00:08]} 3. Nf3 {[%emt 0:00:20]} b6 {[%emt 0:00:54]} 4. g3 {[%emt 0:00:19]} Bb7 {[%emt 0:02:05]} 5. Bg2 {[%emt 0:00:08]} Bb4+ {[%emt 0:09:22]} 6. Bd2 {[%emt 0:00:53]} Bxd2+ {[%emt 0:00:39]} 7. Qxd2 {[%emt 0:02:20]} O-O {[%emt 0:01:30]} 8. Nc3 {[%emt 0:01:14]} d5 {[%emt 0:01:23]} 9. cxd5 {[%emt 0:09:40]} exd5 {[%emt 0:00:33]} 10. O-O {[%emt 0:01:12]} Re8 {[%emt 0:03:32]} 11. Rac1 {[%emt 0:02:40]} a6 {[%emt 0:15:15]} 12. Rc2 {[%emt 0:07:38]} Nc6 {[%emt 0:12:46]} 13. a3 {[%emt 0:08:55]} Na5 {[%emt 0:06:23]} 14. Qd1 {[%emt 0:04:20]} Nc4 {[%emt 0:07:39]} 15. Qc1 {[%emt 0:06:46]} Rc8 {[%emt 0:06:35]} 16. Bh3 {[%emt 0:02:03]} Ra8 {[%emt 0:05:38]} 17. Qf4 {[%emt 0:13:21]} Bc8 {[%emt 0:04:52]} 18. Bxc8 {[%emt 0:05:08]} Rxc8 {[%emt 0:03:48]} 19. Rfc1 {[%emt 0:05:18]} Qd7 {[%emt 0:02:57]} 20. Kg2 {[%emt 0:04:30]} h6 {[%emt 0:09:59]} 21. Re1 {[%emt 0:06:17]} Qd6 {[%emt 0:02:51]} 22. Qf5 {[%emt 0:02:26]} Qe6 {[%emt 0:01:14]} 23. Qd3 {[%emt 0:02:09]} Ng4 {[%emt 0:01:08]} 24. Nd1 {[%emt 0:03:04]} Re7 {[%emt 0:00:25]} 25. h3 {[%emt 0:04:50]} Nf6 {[%emt 0:00:09]} 26. Nc3 {[%emt 0:00:30]} Rce8 {[%emt 0:00:45]} 27. Nxd5 {[%emt 0:02:11]} Qxd5 {[%emt 0:00:39]} 28. Rxc4 {[%emt 0:01:48]} g5 {[%emt 0:00:32]} 29. Kg1 {[%emt 0:01:35]} Qe6 {[%emt 0:00:28]} 30. Kg2 {[%emt 0:01:36]} Qd5 {[%emt 0:00:05]} 31. Kg1 {[%emt 0:00:29]} Qe6 {[%emt 0:00:10]} 32. Kg2 {[%emt 0:00:35]} Qd5 {[%emt 0:00:08]} 33. Rc2 {[%emt 0:00:38]} h5 {[%emt 0:00:45]} 34. Kg1 {[%emt 0:00:41]} g4 {[%emt 0:00:51]} 35. hxg4 {[%emt 0:00:55]} hxg4 {[%emt 0:01:00]} 36. Nh4 {[%emt 0:00:55]} Ne4 {[%emt 0:00:27]} 37. Rf1 {[%emt 0:00:45]} 1-0

[Event "Germany Countries-chT Youth 2022"]
[Site "Wiesbaden"]
[Date "2022.10.02"]
[Round "4"]
[White "Roessling, Laura Marie"]
[Black "Ignatova, Gabriela"]
[Result "1-0"]
[ECO "B48"]
[WhiteElo "1418"]
[BlackElo "1099"]
[Annotator "NA RC COMBH"]
[PlyCount "99"]
[EventDate "2022.09.28"]
[EventType "team-tourn"]
[EventRounds "7"]
[EventCountry "GER"]
[SourceTitle "playchess.com"]
[Source "ChessBase"]
[SourceQuality "1"]
[TimeControl "40/5400+30:1800+30"]

1. e4 {[%emt 0:00:03]} c5 {[%emt 0:00:06]} 2. Nf3 {[%emt 0:00:09]} e6 {[%emt 0:00:06]} 3. d4 {[%emt 0:00:11]} cxd4 {[%emt 0:00:13]} 4. Nxd4 {[%emt 0:00:09]} Nc6 {[%emt 0:00:17]} 5. Nc3 {[%emt 0:02:17]} Qc7 {[%emt 0:00:29]} 6. Be3 {[%emt 0:04:24]} Nf6 {[%emt 0:00:42]} 7. Bc4 {[%emt 0:02:26]} a6 {[%emt 0:01:19]} 8. a3 {[%emt 0:04:06]} b5 {[%emt 0:01:06]} 9. Ba2 {[%emt 0:00:36]} Bb7 {[%emt 0:03:31]} 10. Qd2 {[%emt 0:01:14]} Bc5 {[%emt 0:01:03]} 11. Nxe6 {[%emt 0:01:42]} fxe6 {[%emt 0:01:29]} 12. Bxc5 {[%emt 0:00:27]} Ne5 {[%emt 0:03:57]} 13. Bd6 {[%emt 0:01:48]} Nxe4 {[%emt 0:03:53]} 14. Bxc7 {[%emt 0:01:07]} Nxd2 {[%emt 0:00:30]} 15. Bxe5 {[%emt 0:00:23]} Bxg2 {[%emt 0:01:36]} 16. Kxd2 {[%emt 0:00:52]} Bxh1 {[%emt 0:00:27]} 17. Rxh1 {[%emt 0:00:07]} d6 {[%emt 0:03:25]} 18. Bxg7 {[%emt 0:00:48]} Rg8 {[%emt 0:01:19]} 19. Bd4 {[%emt 0:00:55]} Ke7 {[%emt 0:01:13]} 20. Re1 {[%emt 0:00:57]} Rg6 21. f4 {[%emt 0:01:07]} Rf8 {[%emt 0:03:31]} 22. Nd5+ {[%emt 0:01:01]} Kd7 {[%emt 0:01:36]} 23. Nb6+ {[%emt 0:00:50]} Ke7 {[%emt 0:01:11]} 24. Kc3 {[%emt 0:04:08]} a5 {[%emt 0:01:23]} 25. b4 {[%emt 0:04:29]} a4 {[%emt 0:00:29]} 26. Nd5+ {[%emt 0:01:40]} Kd7 {[%emt 0:00:57]} 27. Nf6+ {[%emt 0:01:27]} Rfxf6 {[%emt 0:00:56]} 28. Bxf6 {[%emt 0:00:21]} Rxf6 {[%emt 0:00:17]} 29. Kb2 {[%emt 0:01:55]} Rxf4 {[%emt 0:00:48]} 30. Rxe6 {[%emt 0:00:22]} h5 {[%emt 0:01:15]} 31. Rh6 {[%emt 0:00:39]} Rh4 {[%emt 0:00:51]} 32. Be6+ {[%emt 0:00:27]} Ke7 {[%emt 0:00:14]} 33. h3 {[%emt 0:00:33]} Re4 {[%emt 0:01:30]} 34. Bf5 {[%emt 0:00:47]} Rf4 {[%emt 0:00:27]} 35. Rxh5 {[%emt 0:00:35]} Kf6 {[%emt 0:01:40]} 36. Bd3 {[%emt 0:00:17]} Kg7 {[%emt 0:01:28]} 37. Bxb5 {[%emt 0:00:36]} Rf6 {[%emt 0:01:10]} 38. Bxa4 {[%emt 0:00:16]} Rh6 {[%emt 0:00:23]} 39. Rxh6 {[%emt 0:00:17]} Kxh6 {[%emt 0:00:11]} 40. b5 {[%emt 0:00:05]} Kg5 {[%emt 0:00:16]} 41. b6 {[%emt 0:30:09]} Kf5 {[%emt 0:30:25]} 42. b7 {[%emt 0:00:04]} Ke5 {[%emt 0:00:21]} 43. b8=Q {[%emt 0:00:10]} Ke6 {[%emt 0:00:19]} 44. Qe8+ {[%emt 0:00:18]} Kd5 {[%emt 0:00:24]} 45. c4+ {[%emt 0:00:52]} Kxc4 {[%emt 0:00:23]} 46. Qe6+ {[%emt 0:00:53]} Kd4 {[%emt 0:00:21]} 47. Kc2 {[%emt 0:00:46]} d5 {[%emt 0:00:29]} 48. h4 {[%emt 0:00:18]} Kc5 {[%emt 0:00:27]} 49. h5 {[%emt 0:00:08]} d4 {[%emt 0:00:29]} 50. Qc6# {[%emt 0:00:18]} 1-0

[Event "Germany Countries-chT Youth 2022"]
[Site "Wiesbaden"]
[Date "2022.10.02"]
[Round "4"]
[White "Huppert, Anna"]
[Black "Wylie, Leonard"]
[Result "1-0"]
[ECO "C02"]
[WhiteElo "1417"]
[BlackElo "1721"]
[Annotator "NA RC COMBH"]
[PlyCount "120"]
[EventDate "2022.09.28"]
[EventType "team-tourn"]
[EventRounds "7"]
[EventCountry "GER"]
[SourceTitle "playchess.com"]
[Source "ChessBase"]
[SourceQuality "1"]
[TimeControl "40/5400+30:1800+30"]

1. e4 {[%emt 0:00:02]} e6 {[%emt 0:00:05]} 2. d4 {[%emt 0:00:10]} d5 {[%emt 0:00:09]} 3. e5 {[%emt 0:00:09]} c5 {[%emt 0:00:05]} 4. c3 {[%emt 0:00:04]} Nc6 {[%emt 0:00:07]} 5. Nf3 {[%emt 0:00:12]} Qb6 {[%emt 0:00:09]} 6. Be2 {[%emt 0:00:14]} Nh6 {[%emt 0:00:31]} 7. Na3 {[%emt 0:00:49]} Nf5 {[%emt 0:00:21]} 8. Nc2 {[%emt 0:00:13]} Be7 {[%emt 0:00:59]} 9. O-O {[%emt 0:00:39]} O-O {[%emt 0:00:35]} 10. b3 {[%emt 0:03:23]} cxd4 {[%emt 0:07:35]} 11. cxd4 {[%emt 0:00:27]} g6 {[%emt 0:01:09]} 12. Bb2 {[%emt 0:06:33]} f6 {[%emt 0:01:18]} 13. Rc1 {[%emt 0:02:30]} fxe5 {[%emt 0:01:34]} 14. Nxe5 {[%emt 0:01:31]} Nxe5 {[%emt 0:01:52]} 15. dxe5 {[%emt 0:00:19]} Rf7 {[%emt 0:01:23]} 16. Ba3 {[%emt 0:08:28]} Bg5 {[%emt 0:05:41]} 17. Rb1 {[%emt 0:01:30]} Bd7 {[%emt 0:01:45]} 18. Kh1 {[%emt 0:01:52]} Bf4 {[%emt 0:02:38]} 19. Bb2 {[%emt 0:10:01]} Qc7 {[%emt 0:01:17]} 20. Re1 {[%emt 0:02:52]} Bxe5 {[%emt 0:05:56]} 21. Bxe5 {[%emt 0:01:47]} Qxe5 {[%emt 0:00:13]} 22. Bg4 {[%emt 0:01:24]} Qg7 {[%emt 0:02:11]} 23. f4 {[%emt 0:02:01]} Re8 {[%emt 0:01:16]} 24. g3 {[%emt 0:02:07]} Nd6 {[%emt 0:01:24]} 25. Re5 {[%emt 0:02:27]} Ne4 {[%emt 0:01:53]} 26. Qe1 {[%emt 0:01:04]} h5 {[%emt 0:01:01]} 27. Bf3 {[%emt 0:00:43]} Rf5 {[%emt 0:02:25]} 28. Bxe4 {[%emt 0:02:18]} dxe4 {[%emt 0:00:22]} 29. Qc3 {[%emt 0:02:24]} Rc8 {[%emt 0:01:45]} 30. Qb2 Rc5 {[%emt 0:03:26]} 31. Rxc5 {[%emt 0:05:22]} Qxb2 {[%emt 0:02:56]} 32. Rc8+ {[%emt 0:01:00]} Bxc8 {[%emt 0:00:26]} 33. Rxb2 {[%emt 0:00:06]} Rd5 {[%emt 0:02:52]} 34. Ne3 {[%emt 0:02:57]} Rd3 {[%emt 0:01:35]} 35. Re2 {[%emt 0:04:18]} b6 {[%emt 0:01:19]} 36. Kg1 {[%emt 0:02:59]} Kf7 {[%emt 0:00:42]} 37. Nc4 {[%emt 0:00:18]} Rd1+ {[%emt 0:00:52]} 38. Kf2 {[%emt 0:01:23]} Bb7 {[%emt 0:00:48]} 39. Nd2 {[%emt 0:08:35]} Ra1 {[%emt 0:06:15]} 40. a4 {[%emt 0:04:23]} Ra2 {[%emt 0:02:55]} 41. Ke3 {[%emt 0:30:37]} Kf6 {[%emt 0:30:42]} 42. Nxe4+ {[%emt 0:01:11]} Bxe4 {[%emt 0:00:50]} 43. Rxa2 {[%emt 0:00:09]} Bd5 {[%emt 0:00:07]} 44. Rb2 {[%emt 0:00:15]} e5 {[%emt 0:00:53]} 45. fxe5+ {[%emt 0:01:55]} Kxe5 {[%emt 0:00:12]} 46. b4 {[%emt 0:01:48]} b5 {[%emt 0:01:28]} 47. axb5 {[%emt 0:01:35]} Bc4 {[%emt 0:00:15]} 48. Rc2 {[%emt 0:01:48]} Kd5 {[%emt 0:00:16]} 49. Rd2+ {[%emt 0:00:17]} Ke6 {[%emt 0:00:25]} 50. Kf4 {[%emt 0:02:13]} Bxb5 {[%emt 0:01:14]} 51. Kg5 {[%emt 0:00:35]} Be8 {[%emt 0:00:35]} 52. Ra2 {[%emt 0:01:01]} Kd5 {[%emt 0:00:51]} 53. Rxa7 {[%emt 0:00:24]} Kd6 {[%emt 0:00:17]} 54. Ra5 {[%emt 0:01:59]} Kc6 {[%emt 0:00:27]} 55. Kf6 {[%emt 0:00:26]} Bd7 {[%emt 0:00:12]} 56. Kxg6 {[%emt 0:00:48]} Bg4 {[%emt 0:00:12]} 57. Kf6 {[%emt 0:00:41]} Kb6 {[%emt 0:00:11]} 58. Rc5 {[%emt 0:01:01]} Be2 {[%emt 0:00:16]} 59. Ke5 {[%emt 0:00:45]} Bg4 {[%emt 0:00:09]} 60. Kd6 {[%emt 0:00:25]} Bf3 {[%emt 0:00:12]} 1-0

[Event "Germany Countries-chT Youth 2022"]
[Site "Wiesbaden"]
[Date "2022.10.02"]
[Round "4"]
[White "Kutz, Ida Klara"]
[Black "Halas, Neele Zoe"]
[Result "0-1"]
[ECO "A13"]
[WhiteElo "1411"]
[BlackElo "1392"]
[Annotator "NA RC COMBH"]
[PlyCount "100"]
[EventDate "2022.09.28"]
[EventType "team-tourn"]
[EventRounds "7"]
[EventCountry "GER"]
[SourceTitle "playchess.com"]
[Source "ChessBase"]
[SourceQuality "1"]
[TimeControl "40/5400+30:1800+30"]

1. c4 {[%emt 0:00:04]} e6 {[%emt 0:00:03]} 2. Nc3 {[%emt 0:00:43]} d5 {[%emt 0:00:10]} 3. cxd5 {[%emt 0:00:13]} exd5 {[%emt 0:00:04]} 4. d4 {[%emt 0:00:06]} c6 {[%emt 0:00:08]} 5. Nf3 {[%emt 0:00:32]} Nf6 {[%emt 0:00:41]} 6. Bg5 {[%emt 0:00:32]} Be7 {[%emt 0:00:24]} 7. e3 {[%emt 0:00:46]} O-O {[%emt 0:00:11]} 8. Bd3 {[%emt 0:01:00]} Nbd7 {[%emt 0:00:22]} 9. O-O {[%emt 0:01:02]} Re8 {[%emt 0:00:40]} 10. a3 {[%emt 0:01:57]} h6 {[%emt 0:01:39]} 11. Bh4 {[%emt 0:00:41]} Ne4 {[%emt 0:04:27]} 12. Bxe7 {[%emt 0:07:13]} Qxe7 {[%emt 0:00:09]} 13. Qc2 {[%emt 0:02:16]} Nxc3 {[%emt 0:04:06]} 14. Qxc3 {[%emt 0:01:58]} Nf6 {[%emt 0:00:41]} 15. b4 {[%emt 0:02:51]} Ne4 {[%emt 0:03:30]} 16. Qc2 {[%emt 0:01:10]} Nf6 {[%emt 0:17:39]} 17. b5 {[%emt 0:03:06]} Qd6 {[%emt 0:12:44]} 18. Ne5 {[%emt 0:08:39]} Nd7 {[%emt 0:02:41]} 19. Bh7+ {[%emt 0:01:48]} Kf8 {[%emt 0:00:21]} 20. bxc6 {[%emt 0:03:40]} Nxe5 {[%emt 0:01:45]} 21. dxe5 {[%emt 0:00:44]} Qxc6 {[%emt 0:00:45]} 22. Qxc6 {[%emt 0:00:51]} bxc6 {[%emt 0:00:11]} 23. Bc2 {[%emt 0:00:22]} Rxe5 {[%emt 0:00:26]} 24. Ba4 {[%emt 0:00:41]} Bb7 {[%emt 0:08:40]} 25. Rab1 {[%emt 0:00:54]} Re7 {[%emt 0:00:24]} 26. Rfc1 {[%emt 0:00:50]} Rc8 {[%emt 0:01:01]} 27. Rc5 {[%emt 0:01:54]} Rec7 {[%emt 0:01:02]} 28. Rbc1 {[%emt 0:01:18]} Ke7 {[%emt 0:00:23]} 29. Bb3 {[%emt 0:13:30]} Kd6 {[%emt 0:08:08]} 30. Kf1 {[%emt 0:03:08]} Ba6+ {[%emt 0:05:26]} 31. Ke1 {[%emt 0:00:32]} Bc4 {[%emt 0:01:04]} 32. Bxc4 {[%emt 0:00:58]} Kxc5 {[%emt 0:00:07]} 33. Ba6+ {[%emt 0:00:06]} Kb6 {[%emt 0:00:06]} 34. Bxc8 {[%emt 0:00:12]} Rxc8 {[%emt 0:00:12]} 35. Rb1+ {[%emt 0:01:12]} Kc7 {[%emt 0:01:00]} 36. Rb4 {[%emt 0:01:09]} c5 {[%emt 0:01:14]} 37. Rb2 {[%emt 0:00:59]} Kc6 {[%emt 0:00:21]} 38. Kd2 {[%emt 0:02:32]} Rc7 {[%emt 0:05:40]} 39. Kc3 {[%emt 0:01:47]} Rb7 {[%emt 0:02:21]} 40. Re2 {[%emt 0:01:28]} c4 {[%emt 0:03:10]} 41. Ra2 {[%emt 0:32:52]} Rb3+ {[%emt 0:30:26]} 42. Kc2 {[%emt 0:00:48]} Kb5 {[%emt 0:02:13]} 43. a4+ {[%emt 0:02:30]} Kb4 {[%emt 0:00:17]} 44. Ra1 {[%emt 0:06:30]} a5 {[%emt 0:02:03]} 45. Rd1 {[%emt 0:01:34]} Rc3+ {[%emt 0:06:30]} 46. Kb2 {[%emt 0:00:38]} Rd3 {[%emt 0:01:09]} 47. Rf1 {[%emt 0:02:21]} Kxa4 {[%emt 0:00:28]} 48. Kc2 {[%emt 0:02:46]} Kb4 {[%emt 0:01:33]} 49. Re1 {[%emt 0:03:04]} a4 {[%emt 0:01:28]} 50. e4 {[%emt 0:01:33]} d4 0-1

[Event "Germany Countries-chT Youth 2022"]
[Site "Wiesbaden"]
[Date "2022.10.02"]
[Round "4"]
[White "Modali, Nikhilamrutha"]
[Black "Gavrylyuk, Oleksandr"]
[Result "1/2-1/2"]
[ECO "B39"]
[WhiteElo "1355"]
[BlackElo "1263"]
[Annotator "NA RC COMBH"]
[PlyCount "83"]
[EventDate "2022.09.28"]
[EventType "team-tourn"]
[EventRounds "7"]
[EventCountry "GER"]
[SourceTitle "playchess.com"]
[Source "ChessBase"]
[SourceQuality "1"]
[TimeControl "40/5400+30:1800+30"]

1. e4 {[%emt 0:00:02]} c5 {[%emt 0:00:05]} 2. Nf3 {[%emt 0:00:04]} Nc6 {[%emt 0:00:07]} 3. d4 {[%emt 0:00:04]} cxd4 {[%emt 0:00:07]} 4. Nxd4 {[%emt 0:00:03]} g6 {[%emt 0:00:08]} 5. c4 {[%emt 0:00:04]} Bg7 {[%emt 0:00:06]} 6. Be3 {[%emt 0:00:50]} Nf6 {[%emt 0:00:22]} 7. Nc3 {[%emt 0:00:07]} Ng4 {[%emt 0:00:28]} 8. Qxg4 {[%emt 0:02:23]} Nxd4 {[%emt 0:00:16]} 9. Qd1 {[%emt 0:00:17]} Ne6 {[%emt 0:00:09]} 10. Rc1 {[%emt 0:05:14]} Qa5 {[%emt 0:01:27]} 11. a3 {[%emt 0:01:33]} b6 {[%emt 0:00:45]} 12. Qd5 {[%emt 0:12:18]} Qxd5 {[%emt 0:00:25]} 13. cxd5 {[%emt 0:00:19]} Nc7 {[%emt 0:00:20]} 14. Bd3 {[%emt 0:04:05]} d6 {[%emt 0:00:44]} 15. Rc2 {[%emt 0:04:52]} Ba6 {[%emt 0:01:33]} 16. Be2 {[%emt 0:01:38]} Bxe2 {[%emt 0:00:27]} 17. Nxe2 {[%emt 0:00:04]} Na6 {[%emt 0:00:17]} 18. Bd4 {[%emt 0:00:28]} O-O {[%emt 0:00:28]} 19. Bxg7 {[%emt 0:06:58]} Kxg7 {[%emt 0:00:10]} 20. b4 {[%emt 0:08:03]} Rfc8 {[%emt 0:00:31]} 21. Rc6 {[%emt 0:06:05]} Rxc6 {[%emt 0:01:02]} 22. dxc6 {[%emt 0:00:11]} Rc8 {[%emt 0:00:31]} 23. b5 {[%emt 0:04:14]} Nc7 {[%emt 0:01:14]} 24. a4 {[%emt 0:03:54]} a6 {[%emt 0:00:07]} 25. Nc3 {[%emt 0:01:14]} axb5 {[%emt 0:01:08]} 26. axb5 {[%emt 0:00:19]} Ra8 {[%emt 0:00:19]} 27. Kd2 {[%emt 0:06:00]} e6 {[%emt 0:01:15]} 28. Ke3 {[%emt 0:05:12]} Kf6 {[%emt 0:03:14]} 29. Rd1 {[%emt 0:01:57]} Ke7 {[%emt 0:01:06]} 30. Rb1 {[%emt 0:06:44]} Ra3 {[%emt 0:02:13]} 31. Kd4 {[%emt 0:02:30]} Kd8 {[%emt 0:09:43]} 32. f3 {[%emt 0:06:41]} Ke7 {[%emt 0:01:50]} 33. h4 {[%emt 0:02:58]} Ra8 {[%emt 0:01:31]} 34. Kc4 {[%emt 0:01:38]} Kf6 {[%emt 0:00:37]} 35. f4 {[%emt 0:00:59]} Ke7 {[%emt 0:02:20]} 36. g4 {[%emt 0:02:04]} h6 {[%emt 0:00:27]} 37. f5 {[%emt 0:02:20]} Rf8 {[%emt 0:01:01]} 38. Ra1 {[%emt 0:01:29]} Ra8 {[%emt 0:01:39]} 39. Rd1 {[%emt 0:01:23]} Rd8 {[%emt 0:01:22]} 40. Ra1 {[%emt 0:00:00]} Ra8 {[%emt 0:00:00]} 41. Rb1 {[%emt 0:04:20]} Rg8 {[%emt 0:01:00]} 42. Rf1 {[%emt 0:16:44]} 1/2-1/2